Workbook

Sheet Sheet1
A1: 2018年第二次总监例会与会人员名单
A2: 序号 | B2: 姓名 | C2: 所在部门/项目 | D2: 事业部 | E2: 电话号码 | F2: 签到
A3: 1 | B3: 杨阔 | C3: 第一事业部 | D3: 一 | E3: =VLOOKUP(B3,[1]员工!$C$3:$G$506,5,0) -> 15004038686、13002439349
A4: 2 | B4: 李芳梅 | C4: 苏家屯沈铁 | D4: 一 | E4: =VLOOKUP(B4,[1]员工!$C$3:$G$506,5,0) -> 13386874396
A5: 3 | B5: 段炼 | C5: 月星国际 | D5: 一 | E5: =VLOOKUP(B5,[1]员工!$C$3:$G$506,5,0) -> 13998288440
A6: 4 | B6: 白山 | C6: 10号线风水电 | D6: 一 | E6: =VLOOKUP(B6,[1]员工!$C$3:$G$506,5,0) -> 13514287115
A7: 5 | B7: 姜贺民 | C7: 综保区联检服务中心 | D7: 一 | E7: =VLOOKUP(B7,[1]员工!$C$3:$G$506,5,0) -> 13842093051
A8: 6 | B8: 胡淳奕 | C8: 电力事业部 | D8: 一 | E8: =VLOOKUP(B8,[1]员工!$C$3:$G$506,5,0) -> 18704063655
A9: 7 | B9: 佟学东 | C9: 电力事业部 | D9: 一 | E9: 15042513131
A10: 8 | B10: 刘晓伟 | C10: 锦州太阳广场 | D10: 二 | E10: =VLOOKUP(B10,[1]员工!$C$3:$G$506,5,0) -> 13897999392
A11: 9 | B11: 王吉锋 | C11: 浦江苑三期 | D11: 二 | E11: =VLOOKUP(B11,[1]员工!$C$3:$G$506,5,0) -> 15802467518
A12: 10 | B12: 孙洪志 | C12: 孔雀城 | D12: 二 | E12: =VLOOKUP(B12,[1]员工!$C$3:$G$506,5,0) -> 15840222980
A13: 11 | B13: 崔红伟 | C13: 国税局 | D13: 二 | E13: =VLOOKUP(B13,[1]员工!$C$3:$G$506,5,0) -> 13478897703
A14: 12 | B14: 刘欢 | C14: 锦州太阳广场 | D14: 二 | E14: =VLOOKUP(B14,[1]员工!$C$3:$G$506,5,0) -> 15904038243
A15: 13 | B15: 杨兆波 | C15: 华润长安里 | D15: 二 | E15: =VLOOKUP(B15,[1]员工!$C$3:$G$506,5,0) -> 13591465456
A16: 14 | B16: 孙德金 | C16: 营口忠旺铝业1.2 | D16: 二 | E16: =VLOOKUP(B16,[1]员工!$C$3:$G$506,5,0) -> 13019304958、18741745902（外）
A17: 15 | B17: 赵金明 | C17: 盘锦铝业 | D17: 二 | E17: =VLOOKUP(B17,[1]员工!$C$3:$G$506,5,0) -> 13940164065
A18: 16 | B18: 丁兆兰 | C18: 中晨厂房 | D18: 二 | E18: =VLOOKUP(B18,[1]员工!$C$3:$G$506,5,0) -> 13840013119
A19: 17 | B19: 张伟 | C19: 万象生活城 | D19: 二 | E19: 15802418930
A20: 18 | B20: 费坚 | C20: 425 | D20: 三 | E20: =VLOOKUP(B20,[1]员工!$C$3:$G$506,5,0) -> 13386867868
A21: 19 | B21: 汪振军 | C21: 425 | D21: 三 | E21: 13940125408
A22: 20 | B22: 王崇 | C22: 中港项目 | D22: 三 | E22: =VLOOKUP(B22,[1]员工!$C$3:$G$506,5,0) -> 13019319777
A23: 21 | B23: 吴彤 | C23: 阳光尚城 | D23: 三 | E23: =VLOOKUP(B23,[1]员工!$C$3:$G$506,5,0) -> 15940326278
A24: 22 | B24: 张宝军 | C24: 龙江苑 | D24: 三 | E24: =VLOOKUP(B24,[1]员工!$C$3:$G$506,5,0) -> 18900924663
A25: 23 | B25: 李晓龙 | C25: 沈北移动 | D25: 三 | E25: =VLOOKUP(B25,[1]员工!$C$3:$G$506,5,0) -> 18602472202
A26: 24 | B26: 赵勇 | C26: 亚朵酒店 | D26: 三 | E26: 13889179062
A27: 25 | B27: 王帅 | C27: 第四事业部 | D27: 四 | E27: =VLOOKUP(B27,[1]员工!$C$3:$G$506,5,0) -> 13940061315
A28: 26 | B28: 庞浩 | C28: 华润翡翠城一期 | D28: 四 | E28: =VLOOKUP(B28,[1]员工!$C$3:$G$506,5,0) -> 15840300335
A29: 27 | B29: 芦冬冬 | C29: 华润翡翠城二期 | D29: 四 | E29: =VLOOKUP(B29,[1]员工!$C$3:$G$506,5,0) -> 13166661621
A30: 28 | B30: 米鑫 | C30: 华润净月薹 | D30: 四 | E30: =VLOOKUP(B30,[1]员工!$C$3:$G$506,5,0) -> 13889270010
A31: 29 | B31: 黄跃华 | C31: 华润二十四城一标段 | D31: 四 | E31: 15940429182
A32: 30 | B32: 蒋中华 | C32: 华润二十四城二标段 | D32: 四 | E32: =VLOOKUP(B32,[1]员工!$C$3:$G$506,5,0) -> 15840447785
A33: 31 | B33: 李博 | C33: 华润昆仑御 | D33: 四 | E33: =VLOOKUP(B33,[1]员工!$C$3:$G$506,5,0) -> 15542261037
A34: 32 | B34: 李善童 | C34: 汉堡王 | D34: 五 | E34: 15802444393
A35: 33 | B35: 张媛 | C35: 汉堡王 | D35: 五 | E35: 18802411413
A36: 34 | B36: 郎婷婷 | C36: 汉堡王 | D36: 五 | E36: 15802471152
A37: 35 | B37: 张平 | C37: 浑南几所小学 | D37: 五 | E37: =VLOOKUP(B37,[1]员工!$C$3:$G$506,5,0) -> 13940512418
A38: 36 | B38: 赵钢 | C38: 新世界花园 | D38: 六 | E38: =VLOOKUP(B38,[1]员工!$C$3:$G$506,5,0) -> 13940512010
A39: 37 | B39: 刘佳龙 | C39: 万科仲山花园 | D39: 六 | E39: =VLOOKUP(B39,[1]员工!$C$3:$G$506,5,0) -> 15040053220
A40: 38 | B40: 吴侃 | C40: 万科翡翠之光 | D40: 六 | E40: =VLOOKUP(B40,[1]员工!$C$3:$G$506,5,0) -> 13998886942
A41: 39 | B41: 王忠福 | C41: 华润八号院 | D41: 六 | E41: =VLOOKUP(B41,[1]员工!$C$3:$G$506,5,0) -> 15909823394
A42: 40 | B42: 高继南 | C42: 美的盛堂 | D42: 六 | E42: =VLOOKUP(B42,[1]员工!$C$3:$G$506,5,0) -> 13020327800
A43: 41 | B43: 贾科铭 | C43: 峰尚花园 | D43: 六 | E43: =VLOOKUP(B43,[1]员工!$C$3:$G$506,5,0) -> 13664157312
A44: 42 | B44: 刘伟楠 | C44: 新世界花园 | D44: 六 | E44: =VLOOKUP(B44,[1]员工!$C$3:$G$506,5,0) -> 18842481321
A45: 43 | B45: 吴迪 | C45: 新世界花园 | D45: 六 | E45: =VLOOKUP(B45,[1]员工!$C$3:$G$506,5,0) -> 15998849771
A46: 44 | B46: 张振伟 | C46: 华润悦玺 | D46: 六 | E46: 17624029293
A47: 45 | B47: 孙茂阳 | C47: 美的城 | D47: 六 | E47: =VLOOKUP(B47,[1]员工!$C$3:$G$506,5,0) -> 15040382899
A48: 46 | B48: 王东 | C48: 美的时代城 | D48: 六 | E48: =VLOOKUP(B48,[1]员工!$C$3:$G$506,5,0) -> 13284138628
A49: 47 | B49: 赵金 | C49: 九院 | D49: 七 | E49: =VLOOKUP(B49,[1]员工!$C$3:$G$506,5,0) -> 13591688862
A50: 48 | B50: 张子亮 | C50: 盛京医院改造 | D50: 七 | E50: =VLOOKUP(B50,[1]员工!$C$3:$G$506,5,0) -> 15040276955
A51: 49 | B51: 张威 | C51: 医大一院 | D51: 七 | E51: =VLOOKUP(B51,[1]员工!$C$3:$G$506,5,0) -> 15504039469
A52: 50 | B52: 金贞玉 | C52: 肿瘤医院 | D52: 七 | E52: =VLOOKUP(B52,[1]员工!$C$3:$G$506,5,0) -> 15840087026、15524189131
A53: 51 | B53: 刘淼 | C53: 医大新校区 | D53: 七 | E53: =VLOOKUP(B53,[1]员工!$C$3:$G$506,5,0) -> 13889860603
A54: 52 | B54: 郭佳林 | C54: 浑南医大 | D54: 七 | E54: =VLOOKUP(B54,[1]员工!$C$3:$G$506,5,0) -> 13840238004
A55: 53 | B55: 刘海军 | C55: 第八事业部 | D55: 八 | E55: 13555737747
A56: 54 | B56: 唐忠义 | C56: 开原部队 | D56: 八 | E56: =VLOOKUP(B56,[1]员工!$C$3:$G$506,5,0) -> 13898821830
A57: 55 | B57: 满正阳 | C57: 辽宁广电总局 | D57: 八 | E57: =VLOOKUP(B57,[1]员工!$C$3:$G$506,5,0) -> 13940600245
A58: 56 | B58: 魏祥文 | C58: 沈北市政 | E58: =VLOOKUP(B58,[1]员工!$C$3:$G$506,5,0) -> 13940213165
A59: 57 | B59: 杨建宏 | C59: 浑南市政 | E59: =VLOOKUP(B59,[1]员工!$C$3:$G$506,5,0) -> 13840076276
A60: 58 | B60: 房大伟 | C60: 康平市政 | E60: =VLOOKUP(B60,[1]员工!$C$3:$G$506,5,0) -> 13478808025
A61: 59 | B61: 张志春 | C61: 本溪市政 | E61: 15940554260
A62: 60 | B62: 郑祥 | C62: 万科品质小组 | E62: 13889318485

Sheet Sheet2

Sheet Sheet3
